[Event "Mitropa Cup Open 2024"]
[Site "Apolda"]
[Date "2024.02.20"]
[Round "6.3"]
[White "Vanczak, Tamas"]
[Black "Morgunov, Marc"]
[Result "1/2-1/2"]
[ECO "C54"]
[WhiteElo "2431"]
[BlackElo "2368"]
[Annotator "RC"]
[PlyCount "79"]
[EventDate "2024.02.15"]
[EventType "team-tourn"]
[EventCountry "GER"]
[SourceTitle "playchess.com"]
[Source "ChessBase"]
[SourceQuality "1"]
[WhiteTeam "Hungary"]
[BlackTeam "Austria"]
[WhiteTeamCountry "HUN"]
[BlackTeamCountry "AUT"]
[TimeControl "40/5400+30:1800+30"]

1. e4 {[%emt 0:00:04]} e5 {[%emt 0:00:54]} 2. Nf3 {[%emt 0:00:07]} Nc6 {[%emt 0:00:08]} 3. Bc4 {[%emt 0:00:11]} Bc5 {[%emt 0:00:07]} 4. c3 {[%emt 0:00:12]} Nf6 {[%emt 0:00:06]} 5. d4 {[%emt 0:00:38]} exd4 {[%emt 0:00:16]} 6. e5 {[%emt 0:00:09]} d5 {[%emt 0:00:22]} 7. Bb5 {[%emt 0:00:10]} Ne4 {[%emt 0:00:06]} 8. cxd4 {[%emt 0:00:10]} Bb6 {[%emt 0:00:07]} 9. Nc3 {[%emt 0:01:33]} O-O {[%emt 0:03:31]} 10. O-O {[%emt 0:03:48]} Bg4 {[%emt 0:12:41]} 11. Be3 {[%emt 0:05:43]} f6 {[%emt 0:08:29]} 12. exf6 {[%emt 0:12:51]} Nxc3 {[%emt 0:00:48]} 13. bxc3 {[%emt 0:00:13]} Qxf6 {[%emt 0:01:06]} 14. Be2 {[%emt 0:00:16]} Rae8 {[%emt 0:02:12]} 15. Qb3 {[%emt 0:14:02]} Qd6 {[%emt 0:13:26]} 16. Rae1 {[%emt 0:05:37]} Na5 {[%emt 0:23:58]} 17. Qc2 {[%emt 0:06:09]} Nc4 {[%emt 0:02:36]} 18. Bxc4 {[%emt 0:12:38]} Bxf3 {[%emt 0:00:41]} 19. Bd3 {[%emt 0:02:32]} Be4 {[%emt 0:00:06]} 20. Bxe4 {[%emt 0:02:44]} Rxe4 {[%emt 0:01:32]} 21. f3 {[%emt 0:00:24]} Re6 {[%emt 0:01:09]} 22. Bf2 {[%emt 0:00:46]} Rfe8 {[%emt 0:00:50]} 23. Rxe6 {[%emt 0:10:07]} Rxe6 {[%emt 0:01:12]} 24. Qf5 {[%emt 0:00:11]} c6 {[%emt 0:07:33]} 25. Re1 {[%emt 0:03:41]} Rxe1+ {[%emt 0:00:42]} 26. Bxe1 {[%emt 0:00:02]} Qe7 {[%emt 0:03:10]} 27. Qc8+ {[%emt 0:01:33]} Kf7 {[%emt 0:00:08]} 28. Kf1 {[%emt 0:00:56]} Ba5 {[%emt 0:03:15]} 29. Bd2 {[%emt 0:01:49]} h6 {[%emt 0:01:15]} 30. h4 {[%emt 0:04:30]} Qc7 {[%emt 0:05:39]} 31. Qg4 {[%emt 0:01:49]} Qd6 {[%emt 0:02:06]} 32. Qf5+ {[%emt 0:01:09]} Qf6 {[%emt 0:02:38]} 33. Qc8 {[%emt 0:00:05]} Qe7 {[%emt 0:00:06]} 34. h5 {[%emt 0:00:13]} Qc7 {[%emt 0:00:21]} 35. Qg4 {[%emt 0:06:18]} Qe7 {[%emt 0:01:47]} 36. Qf5+ {[%emt 0:02:30]} Kg8 {[%emt 0:01:00]} 37. Qc8+ {[%emt 0:01:02]} Kh7 {[%emt 0:00:04]} 38. Qf5+ {[%emt 0:00:24]} Kg8 {[%emt 0:00:05]} 39. Qc8+ {[%emt 0:01:20]} Kh7 {[%emt 0:00:04]} 40. Qf5+ {[%emt 0:00:16]} 1/2-1/2

[Event "Mitropa Cup Open 2024"]
[Site "Apolda"]
[Date "2024.02.20"]
[Round "6.4"]
[White "Dotzer, Lukas"]
[Black "Pasztor, Balazs"]
[Result "1/2-1/2"]
[ECO "C67"]
[WhiteElo "2335"]
[BlackElo "2395"]
[Annotator "RC"]
[PlyCount "105"]
[EventDate "2024.02.15"]
[EventType "team-tourn"]
[EventCountry "GER"]
[SourceTitle "playchess.com"]
[Source "ChessBase"]
[SourceQuality "1"]
[WhiteTeam "Austria"]
[BlackTeam "Hungary"]
[WhiteTeamCountry "AUT"]
[BlackTeamCountry "HUN"]
[TimeControl "40/5400+30:1800+30"]

1. e4 {[%emt 0:00:02]} e5 {[%emt 0:00:06]} 2. Nf3 {[%emt 0:00:05]} Nc6 {[%emt 0:00:09]} 3. Bb5 {[%emt 0:00:03]} Nf6 {[%emt 0:00:10]} 4. O-O {[%emt 0:00:10]} Nxe4 {[%emt 0:00:09]} 5. Re1 {[%emt 0:00:12]} Nd6 {[%emt 0:00:20]} 6. Nxe5 {[%emt 0:00:08]} Be7 {[%emt 0:00:07]} 7. Bf1 {[%emt 0:00:11]} Nxe5 {[%emt 0:00:12]} 8. Rxe5 {[%emt 0:00:05]} O-O {[%emt 0:00:12]} 9. d4 {[%emt 0:00:08]} Bf6 {[%emt 0:00:14]} 10. Re1 {[%emt 0:00:14]} Re8 {[%emt 0:00:12]} 11. Bf4 {[%emt 0:01:10]} Rxe1 {[%emt 0:00:32]} 12. Qxe1 {[%emt 0:00:05]} Ne8 {[%emt 0:00:24]} 13. Nc3 {[%emt 0:04:53]} Bxd4 {[%emt 0:04:26]} 14. Nd5 {[%emt 0:01:06]} c6 {[%emt 0:00:32]} 15. Ne7+ {[%emt 0:03:32]} Kf8 {[%emt 0:00:50]} 16. Nxc8 {[%emt 0:00:55]} Qf6 {[%emt 0:00:44]} 17. Rd1 {[%emt 0:01:07]} Rxc8 {[%emt 0:02:13]} 18. Qe4 {[%emt 0:00:15]} Bb6 {[%emt 0:02:31]} 19. Rxd7 {[%emt 0:00:51]} Rd8 {[%emt 0:01:09]} 20. Rxd8 {[%emt 0:00:18]} Qxd8 {[%emt 0:01:24]} 21. Qb4+ {[%emt 0:00:45]} Kg8 {[%emt 0:06:28]} 22. Bd3 {[%emt 0:08:40]} a5 {[%emt 0:04:51]} 23. Qe4 {[%emt 0:11:31]} Nf6 {[%emt 0:01:50]} 24. Qf3 {[%emt 0:01:44]} Nd5 {[%emt 0:04:14]} 25. Bd2 {[%emt 0:07:44]} g6 {[%emt 0:03:41]} 26. Bc4 {[%emt 0:03:25]} Bd4 {[%emt 0:10:22]} 27. Bxd5 {[%emt 0:03:26]} cxd5 {[%emt 0:02:33]} 28. b3 {[%emt 0:03:22]} b6 {[%emt 0:03:24]} 29. a4 {[%emt 0:03:08]} Qd6 {[%emt 0:04:27]} 30. Qd3 {[%emt 0:06:58]} Qc5 {[%emt 0:06:35]} 31. Be1 {[%emt 0:01:11]} h5 {[%emt 0:01:07]} 32. Kf1 {[%emt 0:02:06]} Be5 {[%emt 0:02:09]} 33. h3 {[%emt 0:05:58]} Qc6 {[%emt 0:03:13]} 34. Bd2 {[%emt 0:04:24]} Bd6 {[%emt 0:02:19]} 35. Bc3 {[%emt 0:03:17]} Bc5 {[%emt 0:00:46]} 36. Bb2 {[%emt 0:03:00]} Kf8 {[%emt 0:02:36]} 37. c4 {[%emt 0:07:56]} Qd6 {[%emt 0:06:10]} 38. cxd5 {[%emt 0:05:18]} Qf4 {[%emt 0:01:03]} 39. f3 {[%emt 0:02:03]} Qh4 {[%emt 0:04:02]} 40. Qe2 {[%emt 0:03:44]} Qg3 {[%emt 0:05:28]} 41. Qd2 {[%emt 0:14:11]} Ke7 {[%emt 0:09:31]} 42. Bd4 {[%emt 0:03:24]} Qd6 {[%emt 0:04:23]} 43. Qe2+ {[%emt 0:11:05]} Kd7 {[%emt 0:00:48]} 44. Qe5 {[%emt 0:04:46]} Bxd4 {[%emt 0:07:05]} 45. Qxd4 {[%emt 0:00:07]} Qc5 {[%emt 0:01:04]} 46. Qxc5 {[%emt 0:01:51]} bxc5 {[%emt 0:00:07]} 47. Ke2 {[%emt 0:00:08]} Kd6 {[%emt 0:00:05]} 48. Kd3 {[%emt 0:00:14]} Kxd5 {[%emt 0:00:11]} 49. h4 {[%emt 0:00:26]} Kd6 {[%emt 0:04:53]} 50. Kc4 {[%emt 0:00:31]} Kc6 {[%emt 0:00:06]} 51. Kc3 {[%emt 0:00:05]} Kd6 {[%emt 0:01:00]} 52. Kc4 {[%emt 0:00:06]} Kc6 {[%emt 0:00:04]} 53. Kc3 {[%emt 0:00:05]} 1/2-1/2

[Event "Mitropa Cup Open 2024"]
[Site "Apolda"]
[Date "2024.02.20"]
[Round "6.5"]
[White "Bogner, Sebastian"]
[Black "Moroni, Luca Jr"]
[Result "1/2-1/2"]
[ECO "E65"]
[WhiteElo "2538"]
[BlackElo "2601"]
[Annotator "TA"]
[PlyCount "60"]
[EventDate "2024.02.15"]
[EventType "team-tourn"]
[EventCountry "GER"]
[SourceTitle "playchess.com"]
[Source "ChessBase"]
[SourceQuality "1"]
[WhiteTeam "Switzerland"]
[BlackTeam "Italy"]
[WhiteTeamCountry "SUI"]
[BlackTeamCountry "ITA"]
[TimeControl "40/5400+30:1800+30"]

{[%evp 22,60,24,15,27,10,20,0,47,43,46,21,19,8,10,3,13,-4,0,0,0,0,0,0,0,-6,-2,-4,-7,-7,0,-6,-1,-5,-2,-4,-4,-3,0,0,-4]} 1. d4 {[%emt 0:00:05]} Nf6 {[%emt 0:00:04]} 2. c4 {[%emt 0:00:03]} g6 {[%emt 0:00:03]} 3. g3 {[%emt 0:00:10]} Bg7 {[%emt 0:00:05]} 4. Bg2 {[%emt 0:00:03]} O-O {[%emt 0:00:08]} 5. Nc3 {[%emt 0:00:30]} d6 {[%emt 0:00:58]} 6. Nf3 {[%emt 0:00:05]} c5 {[%emt 0:00:03]} 7. O-O {[%emt 0:01:39]} Nc6 {[%emt 0:04:30]} 8. dxc5 {[%emt 0:05:20]} dxc5 {[%emt 0:00:07]} 9. Be3 {[%emt 0:00:06]} Be6 {[%emt 0:00:28]} 10. Qa4 {[%emt 0:03:31]} Nd4 {[%emt 0:00:14]} 11. Bxd4 {[%emt 0:11:22]} cxd4 {[%emt 0:00:53]} 12. Nb5 $1 {[%emt 0:00:09][%csl LRa7,LRd4]} Bd7 {[%emt 0:18:54] [#] ...a6 is the strong threat.} 13. Qb3 {[%emt 0:11:49]} Ne4 {[%emt 0:12:10]} 14. Rad1 {[%emt 0:04:18]} (14. Nbxd4 {feels hotter.} Bxd4 15. Nxd4 Nd2 16. Qxb7 Rb8 17. Qxa7 Nxf1 18. Rd1) 14... Nc5 {[%emt 0:20:20]} (14... Bxb5 $11 15. cxb5 Qb6) 15. Qa3 $14 {[%emt 0:00:22]} Bxb5 {[%emt 0:06:27]} 16. cxb5 {[%emt 0:14:17]} Ne6 {[%emt 0:05:29] The position is equal.} 17. e3 {[%emt 0:09:22]} Qd7 {[%emt 0:13:14]} 18. Qb4 {[%emt 0:09:16]} Rad8 {[%emt 0:02:04]} 19. b6 {[%emt 0:08:09]} axb6 {[%emt 0:01:37]} 20. Qxb6 {[%emt 0:00:22]} Qa4 {[%emt 0:03:13]} 21. b3 {[%emt 0:00:45]} Qa6 {[%emt 0:01:58]} 22. Qxa6 {[%emt 0:00:32]} bxa6 {[%emt 0:00:03]} 23. exd4 {[%emt 0:00:33]} Nxd4 {[%emt 0:00:07]} 24. Nxd4 {[%emt 0:00:30]} Bxd4 {[%emt 0:00:15]} 25. Rc1 {[%emt 0:02:50]} Rd6 {[%emt 0:01:30]} 26. Rc7 {[%emt 0:00:53]} e6 {[%emt 0:01:29]} 27. Rfc1 {[%emt 0:00:28]} Rfd8 {[%emt 0:00:58]} 28. Rc8 {[%emt 0:03:28]} a5 {[%emt 0:00:41]} 29. Kf1 {[%emt 0:01:29]} Kf8 {[%emt 0:01:44]} 30. Rxd8+ {[%emt 0:00:27]} Rxd8 {[%emt 0:00:06] Weighted Error Value: White=0.05 (flawless) /Black=0.05 (flawless) .  Mistake:       	---       	Black=1      OK:         	White=7     	Black=5      Best:        	White=1     	---} 1/2-1/2

[Event "Mitropa Cup Open 2024"]
[Site "Apolda"]
[Date "2024.02.20"]
[Round "6.6"]
[White "Brunello, Sabino"]
[Black "Baenziger, Fabian"]
[Result "0-1"]
[ECO "A20"]
[WhiteElo "2512"]
[BlackElo "2414"]
[Annotator "TA"]
[PlyCount "84"]
[EventDate "2024.02.15"]
[EventType "team-tourn"]
[EventCountry "GER"]
[SourceTitle "playchess.com"]
[Source "ChessBase"]
[SourceQuality "1"]
[WhiteTeam "Italy"]
[BlackTeam "Switzerland"]
[WhiteTeamCountry "ITA"]
[BlackTeamCountry "SUI"]
[TimeControl "40/5400+30:1800+30"]

{[%evp 9,84,8,23,18,27,13,10,19,25,37,29,35,10,21,27,13,22,27,39,17,12,22,38,8,0,7,6,4,6,0,106,98,86,65,70,52,83,71,74,62,64,39,60,64,59,37,71,61,78,78,73,40,104,41,61,0,0,-73,-65,-138,0,-98,-8,-27,-13,-159,-137,-140,0,0,0,0,0,-12,-10,-376,-366]} 1. c4 {[%emt 0:00:32]} e5 {[%emt 0:00:36]} 2. g3 {[%emt 0:00:15]} Nf6 {[%emt 0:01:22]} 3. Bg2 {[%emt 0:00:15]} c6 {[%emt 0:02:10]} 4. Nf3 {[%emt 0:03:11]} e4 {[%emt 0:00:31]} 5. Nd4 {[%emt 0:00:01]} Qb6 {[%emt 0:02:51]} 6. Nb3 {[%emt 0:01:08]} a5 {[%emt 0:01:21]} 7. d3 {[%emt 0:04:37]} a4 {[%emt 0:01:28]} 8. N3d2 {[%emt 0:00:47] The position is equal.} Bc5 {[%emt 0:01:03]} 9. O-O {[%emt 0:00:27]} e3 {[%emt 0:01:02]} 10. fxe3 {[%emt 0:00:10]} Bxe3+ {[%emt 0:00:06]} 11. Kh1 {[%emt 0:00:04][%cal Of1f6]} Ng4 {[%emt 0:00:33]} 12. Ne4 {[%emt 0:01:39]} O-O {[%emt 0:00:29]} 13. Nbc3 {[%emt 0:00:48]} d5 {[%emt 0:01:28]} 14. cxd5 {[%emt 0:01:06]} (14. Nxa4 $2 Rxa4 15. Nd6 Ra6 16. Nxc8 Rxc8 $19) 14... Bxc1 {[%emt 0:00:08]} 15. Qxc1 {[%emt 0:00:09]} ({But not} 15. Rxc1 Ne3 16. Qd2 (16. Nxa4 $2 Qa7 $19) 16... cxd5 $17 (16... Nxf1 17. Rxf1 Qd8 18. d4 $15)) 15... Ne3 {[%emt 0:00:06]} 16. dxc6 {[%emt 0:01:33]} Nxc6 {[%emt 0:00:24]} 17. Rf4 {[%emt 0:00:12]} Nxg2 {[%emt 0:19:09]} 18. Kxg2 {[%emt 0:00:05]} Rd8 {[%emt 0:07:46] Dodges Nd5} 19. Ng5 {[%emt 0:48:35][%csl LRa4,LRf7] A dynamic duo of knights.} f6 {[%emt 0:15:09]} (19... Ne5 $1 $11) 20. Nf3 $16 {[%emt 0:00:25]} Re8 {[%emt 0:00:31]} 21. Qd2 {[%emt 0:02:58]} a3 {[%emt 0:01:07]} 22. Rb1 {[%emt 0:07:31][%cal Ba1b1,Bb1b2,Bb2b5,Bb5h5][%mdl 32]} axb2 {[%emt 0:01:09]} 23. Rxb2 {[%emt 0:00:19]} Qd8 {[%emt 0:02:12]} 24. a4 {[%emt 0:04:55]} Rb8 {[%emt 0:12:14]} 25. Rb5 {[%emt 0:05:07]} Bd7 {[%emt 0:00:36][%cal Bc8d7,Bd7e6,Be6f7][%mdl 32]} 26. Qa2+ {[%emt 0:09:39]} Kh8 {[%emt 0:02:08]} 27. Rh5 {[%emt 0:02:10]} Be6 {[%emt 0:10:23]} 28. Qb2 {[%emt 0:00:57]} Bf7 {[%emt 0:00:04]} 29. Rb5 {[%emt 0:00:16]} Re7 {[%emt 0:00:04]} 30. Kf2 {[%emt 0:02:34]} Qd7 {[%emt 0:05:10]} (30... h6 $14) 31. Ne4 {[%emt 0:01:13]} (31. Re4 $16) 31... Rbe8 {[%emt 0:00:17]} 32. g4 {[%emt 0:01:54]} (32. Kg1 $14) 32... Bd5 $11 {[%emt 0:06:56]} 33. Nfd2 {[%emt 0:00:42]} (33. g5 $11 fxg5 34. Nfxg5) 33... Qc7 $1 $17 {[%emt 0:00:51][%mdl 1024] Black has strong compensation.} 34. Ke3 {[%emt 0:00:17]} (34. e3 $15 Bxe4 35. Nxe4) 34... Qd7 {[%emt 0:03:14] Black is more active.} ({Black should play} 34... Rd7 $17 {...Ne7 is the strong threat.} 35. Nf3 Ne7 36. Rxf6 Bxe4 (36... gxf6 $2 {is the wrong capture.} 37. Nxf6 Nf5+ 38. Kf2 $18) 37. dxe4 Nd5+ (37... gxf6 38. Qxf6+ Kg8 39. Qe6+ Kg7 40. Rg5+ Ng6 41. Rxg6+ hxg6 42. Qxe8 $15) 38. Rxd5 Rxd5) 35. h3 {[%emt 0:00:26]} (35. Kf2 $11 {keeps the balance.}) 35... Ra8 {[%emt 0:01:00]} (35... Qd6 $1 $17) 36. Rf5 $11 {[%emt 0:00:54]} Be6 {[%emt 0:00:44] Some like it hot} 37. Rxf6 {[%emt 0:00:34]} gxf6 $17 {[%emt 0:00:34]} 38. Nxf6 {[%emt 0:00:06] [#]} Qd4+ {[%emt 0:01:33]} 39. Qxd4 $11 {[%emt 0:00:05]} Nxd4 {[%emt 0:00:04]} 40. Kxd4 {[%emt 0:00:23]} Rxa4+ {[%emt 0:00:32]} 41. Kc5 {[%emt 0:01:55] And now Kd6 would win.} Bf7 {[%emt 0:05:36] Strongly threatening ...Re5+.} 42. e4 $2 {[%emt 0:15:49][%mdl 8192] [#]} (42. Nc4 $11 {and White has nothing to worry.}) 42... Re6 $1 {[%emt 0:05:07] Weighted Error Value: White=0.39/Black=0.27 (precise) .  Loses game:     	White=1     	---        Mistake:       	White=6     	Black=5      Inaccurate:     	White=1     	Black=2      OK:         	White=13    	Black=15     Best:        	White=4     	Black=2      Strong:       	---       	Black=2} 0-1

[Event "Mitropa Cup Open 2024"]
[Site "Apolda"]
[Date "2024.02.20"]
[Round "6.7"]
[White "Fecker, Noah"]
[Black "Carnicelli, Valerio"]
[Result "1/2-1/2"]
[ECO "B48"]
[WhiteElo "2397"]
[BlackElo "2427"]
[Annotator "TA"]
[PlyCount "111"]
[EventDate "2024.02.15"]
[EventType "team-tourn"]
[EventCountry "GER"]
[SourceTitle "playchess.com"]
[Source "ChessBase"]
[SourceQuality "1"]
[WhiteTeam "Switzerland"]
[BlackTeam "Italy"]
[WhiteTeamCountry "SUI"]
[BlackTeamCountry "ITA"]
[TimeControl "40/5400+30:1800+30"]

{[%evp 42,111,0,0,19,34,23,22,18,30,81,21,21,5,35,8,42,-22,0,0,0,0,0,0,0,0,0,0,0,0,0,0,0,0,0,0,0,0,0,0,0,0,0,0,0,0,0,0,0,0,0,0,0,0,0,0,0,0,0,0,0,0,0,0,0,0,0,0,0,0,0,0]} 1. e4 {[%emt 0:00:02]} c5 {[%emt 0:00:04]} 2. Nf3 {[%emt 0:00:20]} e6 {[%emt 0:00:05]} 3. d4 {[%emt 0:00:09]} cxd4 {[%emt 0:00:04]} 4. Nxd4 {[%emt 0:00:02]} Nc6 {[%emt 0:00:07]} 5. Nc3 {[%emt 0:00:08]} Qc7 {[%emt 0:00:05]} 6. Be3 {[%emt 0:00:19]} a6 {[%emt 0:00:05]} 7. g4 {[%emt 0:00:14] B48: Sicilian: Taimanov: 5 Nc3 Qc7 6 Be3 a6 without Be2.} Nxd4 {[%emt 0:00:06]} 8. Qxd4 {[%emt 0:00:18]} b5 {[%emt 0:00:10]} 9. O-O-O {[%emt 0:00:59]} Bb7 {[%emt 0:00:15]} 10. f3 {[%emt 0:02:56]} Rc8 {[%emt 0:01:34]} 11. Qd2 {[%emt 0:00:29]} Bb4 {[%emt 0:03:26]} 12. Bd4 {[%emt 0:00:49]} f6 {[%emt 0:00:39]} 13. g5 {[%emt 0:01:53]} h6 {[%emt 0:00:09]} 14. gxh6 {[%emt 0:02:25]} Nxh6 {[%emt 0:00:08]} 15. a3 {[%emt 0:00:07]} Bxa3 {[%emt 0:00:32]} 16. bxa3 {[%emt 0:00:36]} e5 {[%emt 0:00:11]} 17. Nxb5 {[%emt 0:00:21]} axb5 {[%emt 0:00:09]} 18. Bb2 {[%emt 0:00:20]} Nf7 {[%emt 0:00:34]} 19. h4 {[%emt 0:00:34]} d5 {[%emt 0:04:32]} 20. Bxb5+ {[%emt 0:02:37]} Kf8 {[%emt 0:00:04]} 21. Ba4 {[%emt 0:04:46]} d4 {[%emt 0:02:11]} 22. Bb3 {[%emt 0:13:45]} Rb8 $146 {[%emt 0:01:42]} ({Predecessor:} 22... Nd6 23. Kb1 Rb8 24. Ka2 Ba6 25. f4 Nc4 26. Qc1 Nxb2 27. Qxb2 Rb6 28. Rh3 Qd7 {½-½ Beerdsen,T (2516)-Martinez Pla,X (2255) Barcelona Sants op 24th 2023 (4)}) 23. Kb1 {[%emt 0:12:54]} Ba6 {[%emt 0:05:35]} 24. f4 {[%emt 0:15:41]} Bc4 {[%emt 0:07:26]} 25. Rh3 {[%emt 0:04:23]} Qc6 {[%emt 0:24:28]} (25... Bxb3 $11 26. cxb3 Qc6) 26. Qg2 {[%emt 0:05:26]} (26. fxe5 $16 fxe5 27. Qg2) 26... exf4 {[%emt 0:07:51]} 27. Rxd4 {[%emt 0:05:44]} Bxb3 $1 {[%emt 0:08:43]} (27... Ne5 $2 28. Rc3 Rxh4 29. Rdxc4 (29. Bxc4 $2 Rxb2+ 30. Ka1 Rb8 $19) 29... Nxc4 30. Rxc4 $18) 28. cxb3 {[%emt 0:00:24]} Ne5 {[%emt 0:03:05]} (28... Qe6 $5) 29. Qd2 {[%emt 0:05:16]} (29. Qf1 $14 f3 30. Ka2) 29... f3 {[%emt 0:03:44]} 30. Rb4 {[%emt 0:06:35]} Rxb4 {[%emt 0:09:51]} 31. Qxb4+ {[%emt 0:00:08]} Kf7 $1 {[%emt 0:06:26]} 32. Bxe5 {[%emt 0:02:29]} Rd8 $1 {[%emt 0:00:02]} 33. Bb2 {[%emt 0:09:41]} (33. Rxf3 $2 Rd1+ 34. Ka2 Qc2+ 35. Bb2 Qb1#) 33... Rd1+ $1 {[%emt 0:02:35]} 34. Ka2 {[%emt 0:00:01]} f2 {[%emt 0:00:42]} 35. Rc3 {[%emt 0:01:45]} Qxc3 $1 {[%emt 0:00:31]} (35... f1=Q $2 36. Rxc6 Qd3 37. Qc4+ Qxc4 38. Rxc4 $18) 36. Qxc3 {[%emt 0:00:15]} f1=Q {[%emt 0:00:23]} (36... f1=B $2 {is the wrong capture.} 37. e5 Bd3 38. a4 (38. exf6 Bb1+ 39. Ka1 Bf5+ 40. Bc1 gxf6 $18) 38... fxe5 39. Qxe5 Bb1+ 40. Ka3 $18) 37. a4 {[%emt 0:01:25]} Qd3 {[%emt 0:05:13]} 38. Qc7+ {[%emt 0:00:37]} Qd7 {[%emt 0:00:50]} 39. Qc4+ {[%emt 0:01:21]} (39. Qxd7+ Rxd7 40. a5 Re7) 39... Qe6 {[%emt 0:00:21]} 40. Qe2 {[%emt 0:00:28]} Rd7 {[%emt 0:02:12]} 41. Qh5+ {[%emt 0:08:32]} Kg8 {[%emt 0:02:11]} 42. Qf5 {[%emt 0:00:42]} Kf7 {[%emt 0:16:15]} 43. Qh5+ {[%emt 0:00:30]} Kg8 {[%emt 0:00:27]} 44. Qf5 {[%emt 0:00:07]} Qxf5 {[%emt 0:00:03]} 45. exf5 {[%emt 0:00:06]} Kf7 {[%emt 0:00:06]} ({Don't go for} 45... Rd5 $2 46. b4 Kf7 47. a5 $18) 46. b4 {[%emt 0:06:55]} Ke7 {[%emt 0:00:26]} 47. Kb3 {[%emt 0:01:03]} Rd5 {[%emt 0:06:05]} 48. Kc4 {[%emt 0:05:27]} Kd6 {[%emt 0:01:20]} 49. a5 {[%emt 0:03:20]} Kc6 {[%emt 0:03:39]} 50. Bd4 {[%emt 0:01:20]} Rxf5 {[%emt 0:00:50]} 51. a6 {[%emt 0:01:27]} Rh5 {[%emt 0:00:37]} 52. Bf2 {[%emt 0:00:31]} g6 {[%emt 0:04:42]} 53. Bd4 {[%emt 0:00:35]} Rf5 {[%emt 0:01:51]} 54. Bc5 {[%emt 0:00:47]} Rf4+ {[%emt 0:00:30]} 55. Bd4 {[%emt 0:00:01]} Rf5 {[%emt 0:00:15]} 56. Bc5 {[%emt 0:00:02]} 1/2-1/2

[Event "Mitropa Cup Open 2024"]
[Site "Apolda"]
[Date "2024.02.20"]
[Round "6.8"]
[White "Perossa, Nicolas"]
[Black "Gallagher, Joseph G."]
[Result "1/2-1/2"]
[ECO "B31"]
[WhiteElo "2277"]
[BlackElo "2427"]
[Annotator "RC"]
[PlyCount "143"]
[EventDate "2024.02.15"]
[EventType "team-tourn"]
[EventCountry "GER"]
[SourceTitle "playchess.com"]
[Source "ChessBase"]
[SourceQuality "1"]
[WhiteTeam "Italy"]
[BlackTeam "Switzerland"]
[WhiteTeamCountry "ITA"]
[BlackTeamCountry "SUI"]
[TimeControl "40/5400+30:1800+30"]

1. e4 {[%emt 0:00:03]} c5 {[%emt 0:00:05]} 2. Nf3 {[%emt 0:00:06]} Nc6 {[%emt 0:00:30]} 3. Bb5 {[%emt 0:00:07]} g6 {[%emt 0:00:31]} 4. Bxc6 {[%emt 0:00:24]} bxc6 {[%emt 0:00:16]} 5. O-O {[%emt 0:00:07]} Bg7 {[%emt 0:00:05]} 6. Re1 {[%emt 0:00:39]} Qc7 {[%emt 0:01:00]} 7. c3 {[%emt 0:01:02]} d6 {[%emt 0:00:37]} 8. h3 {[%emt 0:07:07]} Nf6 {[%emt 0:00:13]} 9. d4 {[%emt 0:00:25]} cxd4 {[%emt 0:00:06]} 10. cxd4 {[%emt 0:00:08]} O-O {[%emt 0:00:04]} 11. Nc3 {[%emt 0:02:30]} c5 {[%emt 0:02:40]} 12. Bf4 {[%emt 0:23:28]} cxd4 {[%emt 0:06:17]} 13. Nxd4 {[%emt 0:00:13]} Bb7 {[%emt 0:02:29]} 14. Nb3 {[%emt 0:07:48]} Rac8 {[%emt 0:10:00]} 15. Rc1 {[%emt 0:05:23]} Qd7 {[%emt 0:05:55]} 16. Qe2 {[%emt 0:03:14]} Ba8 {[%emt 0:06:53]} 17. Red1 {[%emt 0:05:25]} Rxc3 {[%emt 0:09:38]} 18. bxc3 {[%emt 0:09:40]} Nxe4 {[%emt 0:00:32]} 19. Qe3 {[%emt 0:00:30]} Qf5 {[%emt 0:08:47]} 20. Nd4 {[%emt 0:09:18]} Qh5 {[%emt 0:08:54]} 21. f3 {[%emt 0:02:37]} e5 {[%emt 0:02:43]} 22. fxe4 {[%emt 0:00:05]} exf4 {[%emt 0:00:05]} 23. Qxf4 {[%emt 0:08:54]} Bh6 {[%emt 0:01:48]} 24. Qxd6 {[%emt 0:02:56]} Bxe4 {[%emt 0:01:32]} 25. Qg3 {[%emt 0:00:20]} Bxc1 {[%emt 0:04:52]} 26. Rxc1 {[%emt 0:00:14]} Qd5 {[%emt 0:00:29]} 27. Qf2 {[%emt 0:01:42]} Rc8 {[%emt 0:00:30]} 28. Qb2 {[%emt 0:04:37]} Qg5 {[%emt 0:05:30]} 29. Re1 {[%emt 0:00:55]} Bd5 {[%emt 0:01:09]} 30. Qf2 {[%emt 0:01:07]} h5 {[%emt 0:05:30]} 31. Re3 {[%emt 0:00:21]} Bxa2 {[%emt 0:05:44]} 32. h4 {[%emt 0:01:47]} Qa5 {[%emt 0:01:43]} 33. Qf6 {[%emt 0:01:14]} Qb6 {[%emt 0:02:02]} 34. Qe5 {[%emt 0:00:11]} Qb1+ {[%emt 0:00:54]} 35. Kh2 {[%emt 0:02:24]} Qb8 {[%emt 0:00:32]} 36. Qxb8 {[%emt 0:00:14]} Rxb8 {[%emt 0:00:01]} 37. Nc6 {[%emt 0:00:35]} Rb7 {[%emt 0:01:24]} 38. Re5 {[%emt 0:01:03]} Rc7 {[%emt 0:06:10]} 39. Ra5 {[%emt 0:00:05]} Rxc6 {[%emt 0:00:48]} 40. Rxa2 {[%emt 0:00:05]} a6 {[%emt 0:00:04]} 41. Ra5 {[%emt 0:02:20]} Kf8 {[%emt 0:00:37]} 42. g3 {[%emt 0:00:22]} Ke7 {[%emt 0:00:07]} 43. c4 {[%emt 0:02:12]} Kd6 {[%emt 0:04:28]} 44. Kg2 {[%emt 0:00:55]} Kc7 {[%emt 0:00:50]} 45. Kf3 {[%emt 0:06:19]} Kb6 {[%emt 0:01:27]} 46. Ra4 {[%emt 0:01:52]} Re6 {[%emt 0:03:44]} 47. Kf4 {[%emt 0:01:09]} Kc5 {[%emt 0:11:49]} 48. Kg5 {[%emt 0:03:09]} Kd4 {[%emt 0:01:29]} 49. Kh6 {[%emt 0:00:12]} Rc6 {[%emt 0:02:09]} 50. Kg7 {[%emt 0:01:48]} f5 {[%emt 0:00:05]} 51. Kh6 {[%emt 0:00:45]} Kc3 {[%emt 0:01:26]} 52. c5 {[%emt 0:00:21]} Kb3 {[%emt 0:01:22]} 53. Rd4 {[%emt 0:00:15]} a5 {[%emt 0:01:10]} 54. Rd6 {[%emt 0:00:21]} Rxc5 {[%emt 0:00:08]} 55. Rb6+ {[%emt 0:03:10]} Kc3 {[%emt 0:00:24]} 56. Kxg6 {[%emt 0:00:09]} a4 {[%emt 0:00:08]} 57. Ra6 {[%emt 0:07:58]} Kb4 {[%emt 0:00:40]} 58. Kxh5 {[%emt 0:00:06]} f4+ {[%emt 0:06:14]} 59. Kg4 {[%emt 0:00:07]} fxg3 {[%emt 0:00:09]} 60. Kxg3 {[%emt 0:00:06]} a3 {[%emt 0:00:12]} 61. Kg4 {[%emt 0:05:43]} Rc2 {[%emt 0:00:30]} 62. Rb6+ {[%emt 0:02:13]} Ka5 {[%emt 0:00:49]} 63. Rb1 {[%emt 0:00:29]} a2 {[%emt 0:01:18]} 64. Ra1 {[%emt 0:00:05]} Kb4 {[%emt 0:00:08]} 65. h5 {[%emt 0:00:06]} Kb3 {[%emt 0:00:10]} 66. h6 {[%emt 0:00:10]} Kb2 {[%emt 0:00:11]} 67. Rxa2+ {[%emt 0:00:05]} Kxa2 {[%emt 0:00:03]} 68. Kg5 {[%emt 0:00:06]} Kb3 {[%emt 0:00:19]} 69. h7 {[%emt 0:00:10]} Rh2 {[%emt 0:00:05]} 70. Kg6 {[%emt 0:00:04]} Kc4 {[%emt 0:00:05]} 71. Kg7 {[%emt 0:00:04]} Rxh7+ {[%emt 0:00:07]} 72. Kxh7 {[%emt 0:00:07]} 1/2-1/2